fUST/lending_fUST_20240914
["ID","MTS","AMOUNT","RATE_DAILY","PERIOD"]
[338153716,1726317119726,-600.0,0.00028,30]
[338153718,1726317119735,-500.0,0.00028,30]
[338153719,1726317119745,-600.0,0.00028,30]
[338153720,1726317119754,-500.0,0.00028,30]
[338153721,1726317119763,-600.0,0.00028,30]
[338153722,1726317119772,-500.0,0.00028,30]
[338153723,1726317119782,-600.0,0.00028,30]
[338153724,1726317119791,-500.0,0.00028,30]
[338153725,1726317119800,-600.0,0.00028,30]
[338153726,1726317119810,-600.0,0.00028,30]
[338153727,1726317119819,-500.0,0.00028,30]
[338153728,1726317119828,-600.0,0.00028,30]
[338153729,1726317119838,-500.0,0.00028,30]
[338153730,1726317119847,-600.0,0.00028,30]
[338153731,1726317119856,-500.0,0.00028,30]
[338153732,1726317119866,-600.0,0.00028,30]
[338153733,1726317119875,-500.0,0.00028,30]
[338153734,1726317119884,-600.0,0.00028,30]
[338153735,1726317119894,-600.0,0.00028,30]
[338153736,1726317119903,-500.0,0.00028,30]
[338153737,1726317119911,-600.0,0.00028,30]
[338153738,1726317119920,-500.0,0.00028,30]
[338153739,1726317119930,-600.0,0.00028,30]
[338153740,1726317119939,-500.0,0.00028,30]
[338153741,1726317119948,-500.0,0.00028,30]
[338153742,1726317119957,-500.0,0.00028,30]
[338153744,1726317119967,-500.0,0.00028,30]
[338153745,1726317119976,-2244.345798,0.00028,7]
[338153746,1726317119985,-2244.345798,0.00028,7]
[338153747,1726317119995,-151.0,0.00028,7]
[338153748,1726317120004,-155.692388,0.00028,7]
[338153750,1726317120014,-155.692388,0.00028,7]
[338153751,1726317120024,-376.707275,0.00028,7]
[338153752,1726317120034,-376.707275,0.00028,7]
[338153753,1726317120044,-164.381605,0.00028,7]
[338153754,1726317120053,-151.0,0.00028,7]
[338153756,1726317120062,-291.162764,0.00028,7]
[338153757,1726317120072,-151.0,0.00028,7]
[338153758,1726317120081,-291.162764,0.00028,7]
[338153759,1726317120090,-9847.64239,0.00028,7]
[338153760,1726317120100,-9847.64239,0.00028,7]
[338153762,1726317120110,-5000.0,0.00028,2]
[338153763,1726317120120,-5000.0,0.00028,2]
[338153764,1726317120130,-621.75166,0.00028,7]
[338153765,1726317120139,-151.0,0.00028,7]
[338153766,1726317120149,-621.75166,0.00028,7]
[338153767,1726317120158,-227.422056,0.00028,7]
[338153768,1726317120168,-420.832819,0.00028,7]
[338153769,1726317120177,-420.832819,0.00028,7]
[338153770,1726317120187,-1945.474756,0.00028,7]
[338153771,1726317120196,-1945.474756,0.00028,7]
[338153772,1726317120207,-1635.513903,0.00028,7]
[338153774,1726317120217,-1635.513907,0.00028,7]
[338153775,1726317120227,-2881.366516,0.00028,7]
[338153776,1726317120236,-2881.366516,0.00028,7]
[338153777,1726317120246,-204.041162,0.00028,7]
[338153778,1726317120256,-151.0,0.00028,7]
[338153779,1726317120265,-322.684942,0.00028,7]
[338153780,1726317120275,-322.684942,0.00028,7]
[338153781,1726317120285,-522.940458,0.00028,7]
[338153782,1726317120294,-522.940452,0.00028,7]
[338153783,1726317120304,-807.72,0.000281,7]
[338153784,1726317120315,-158.834459,0.00028203,2]
[338153785,1726317120325,-150.0,0.00028333,2]
[338153786,1726317120336,-150.0,0.00028333,2]
[338153787,1726317120345,-164.483333,0.00028493,2]
[338153788,1726317120355,-836.60082616,0.00028763,2]
[338153789,1726317120364,-184.5,0.00029,2]
[338153790,1726317120373,-5000.0,0.00029,2]
[338153792,1726317120383,-227.53,0.000297,31]
[338153793,1726317120392,-227.53,0.000297,31]
[338153794,1726317120401,-227.53,0.000297,31]
[338153795,1726317120411,-227.53,0.000297,31]
[338153796,1726317120422,-227.53,0.000297,31]
[338153797,1726317120431,-227.53,0.000297,31]
[338153798,1726317120440,-227.53,0.000297,31]
[338153799,1726317120450,-227.53,0.000297,31]
[338153800,1726317120459,-227.53,0.000297,31]
[338153801,1726317120469,-227.53,0.000297,31]
[338153802,1726317120478,-227.53,0.000297,31]
[338153803,1726317120488,-227.53,0.000297,31]
[338153804,1726317120498,-227.53,0.000297,31]
[338153805,1726317120507,-227.53,0.000297,31]
[338153806,1726317120516,-227.53,0.000297,31]
[338153807,1726317120526,-227.53,0.000297,31]
[338153808,1726317120536,-227.53,0.000297,31]
[338153809,1726317120545,-227.53,0.000297,31]
[338153810,1726317120555,-227.53,0.000297,31]
[338153811,1726317120565,-227.53,0.000297,31]
[338153812,1726317120574,-227.53,0.000297,31]
[338153813,1726317120584,-227.53,0.000297,31]
[338153814,1726317120593,-227.53,0.000297,31]
[338153815,1726317120603,-227.53,0.000297,31]
[338153816,1726317120612,-160.1,0.0003,2]
[338153818,1726317120621,-350.0,0.0003,60]
[338153819,1726317120630,-350.0,0.0003,60]
[338153820,1726317120640,-151.0,0.0003,120]
[338153821,1726317120650,-151.0,0.0003,120]
[338153822,1726317120659,-262.2006128,0.0003,120]
[338153823,1726317120670,-205.2165427,0.0003,30]
[338153825,1726317120680,-13043.3624938,0.0003,120]
[338153826,1726317120689,-263.0,0.0003,2]
[338153827,1726317120701,-3000.0,0.00030073,5]
[338153828,1726317120711,-6927.23,0.00030136,7]
[338153829,1726317120721,-407.184,0.00030323,25]
[338153830,1726317120731,-524.0,0.00030478,2]
[338153831,1726317120740,-150.0,0.00030478,2]
[338153832,1726317120750,-208.5342696,0.00030634,2]
[338153833,1726317120759,-208.5342696,0.00030634,2]
[338153834,1726317120770,-208.5342696,0.00030634,2]
[338153835,1726317120781,-153.0,0.00030634,2]
[338153836,1726317120791,-153.0,0.00030634,2]
[338153837,1726317120801,-208.5342696,0.00030634,2]
[338153838,1726317120811,-208.5342696,0.00030634,2]
[338153839,1726317120823,-153.0,0.00030634,2]
[338153840,1726317120833,-208.5342696,0.00030634,2]
[338153841,1726317120842,-208.5342696,0.00030634,2]
[338153842,1726317120852,-208.5342696,0.00030634,2]
[338153843,1726317120864,-208.5342696,0.00030634,2]
[338153844,1726317120873,-208.5342696,0.00030634,2]
[338153845,1726317120882,-208.5342696,0.00030634,2]
[338153847,1726317120892,-208.5342696,0.00030634,2]
[338153848,1726317120902,-208.5342696,0.00030634,2]
[338153849,1726317120911,-208.5342696,0.00030634,2]
[338153850,1726317120923,-208.5342696,0.00030634,2]
[338153851,1726317120940,-208.5342696,0.00030634,2]
[338153853,1726317120949,-452.8277004,0.00030634,2]
[338153854,1726317120958,-5000.0,0.00031,7]
[338153855,1726317120967,-328.0442379,0.00031318,2]
[338153856,1726317120978,-153.0,0.00031318,2]
[338153857,1726317120987,-153.0,0.00031318,2]
[338153859,1726317120996,-153.0,0.00031318,2]
[338153860,1726317121005,-153.0,0.00031318,2]
[338153861,1726317121014,-306.0,0.00031318,2]
[338153862,1726317121024,-153.0,0.00031318,2]
[338153863,1726317121033,-153.0,0.00031318,2]
[338153865,1726317121042,-153.0,0.00031318,2]
[338153866,1726317121051,-153.0,0.00031318,2]
[338153867,1726317121061,-150.0,0.00031333,2]
[338153868,1726317121070,-5000.0,0.00031869,2]
[338153869,1726317121080,-836.60082616,0.00031976,2]
[338153870,1726317121089,-151.0,0.00032,30]
[338153872,1726317121099,-5000.0,0.00032,7]
[338153873,1726317121110,-7375.14231413,0.00032003,2]
[338153874,1726317121123,-6927.23,0.00032054,9]
[338153875,1726317121133,-28880.15865001,0.0003212,10]
[338153876,1726317121142,-153.0,0.00032277,2]
[338153877,1726317121151,-153.0,0.00032277,2]
[338153878,1726317121162,-153.0,0.00032277,2]
[338153879,1726317121173,-306.0,0.00032277,2]
[338153881,1726317121182,-153.0,0.00032371,2]
[338153882,1726317121192,-153.0,0.00032371,2]
[338153883,1726317121202,-153.0,0.00032371,2]
[338153884,1726317121212,-153.0,0.00032371,2]
[338153885,1726317121221,-153.0,0.00032371,2]
[338153887,1726317121230,-311.9358238,0.00032371,2]
[338153888,1726317121308,-153.0,0.00032371,2]
[338153889,1726317121318,-153.0,0.00032371,2]
[338153890,1726317121327,-153.0,0.00032371,2]
[338153891,1726317121336,-153.0,0.00032371,2]
[338153892,1726317121345,-153.0,0.00032371,2]
[338153894,1726317121354,-153.0,0.00032371,2]
[338153895,1726317121363,-153.0,0.00032371,2]
[338153896,1726317121372,-153.0,0.00032371,2]
[338153897,1726317121382,-153.0,0.00032371,2]
[338153898,1726317121391,-153.0,0.00032371,2]
[338153899,1726317121401,-153.0,0.00032371,2]
[338153900,1726317121410,-151.0,0.00032411,120]
[338153901,1726317121421,-227.53,0.000327,31]
[338153903,1726317121431,-227.53,0.000327,31]
[338153904,1726317121440,-227.53,0.000327,31]
[338153905,1726317121449,-227.53,0.000327,31]
[338153906,1726317121458,-227.53,0.000327,31]
[338153907,1726317121468,-227.53,0.000327,31]
[338153908,1726317121477,-227.53,0.000327,31]
[338153910,1726317121486,-227.53,0.000327,31]
[338153911,1726317121496,-227.53,0.000327,31]
[338153912,1726317121505,-227.53,0.000327,31]
[338153913,1726317121515,-227.53,0.000327,31]
[338153914,1726317121525,-227.53,0.000327,31]
[338153916,1726317121534,-227.53,0.000327,31]
[338153917,1726317121544,-227.53,0.000327,31]
[338153918,1726317121555,-227.53,0.000327,31]
[338153919,1726317121565,-227.53,0.000327,31]
[338153920,1726317121574,-227.53,0.000327,31]
[338153921,1726317121583,-227.53,0.000327,31]
[338153922,1726317121592,-227.53,0.000327,31]
[338153923,1726317121601,-227.53,0.000327,31]
[338153925,1726317121612,-227.53,0.000327,31]
[338153926,1726317121622,-227.53,0.000327,31]
[338153927,1726317121632,-227.53,0.000327,31]
[338153928,1726317121641,-227.53,0.000327,31]
[338153929,1726317121651,-500.0,0.00032876,2]
[338153931,1726317121662,-500.0,0.00032876,2]
[338153932,1726317121674,-353.17994012,0.00032876,2]
[338153933,1726317121683,-740.032628,0.00032876,7]
[338153934,1726317121692,-740.032635,0.00032876,7]
[338153935,1726317121701,-500.0,0.00032876,2]
[338153937,1726317121713,-500.0,0.00032876,2]
[338153938,1726317121722,-500.0,0.00032876,2]
[338153939,1726317121732,-500.0,0.00032876,2]
[338153940,1726317121741,-500.0,0.00032876,2]
[338153941,1726317121750,-552.31479464,0.00032876,2]
[338153943,1726317121761,-608.59652966,0.00032876,2]
[338153944,1726317121770,-500.0,0.00032876,2]
[338153945,1726317121780,-325.81185467,0.00032876,2]
[338153946,1726317121789,-500.0,0.00032876,2]
[338153947,1726317121798,-500.0,0.00032876,2]
[338153949,1726317121808,-500.0,0.00032876,2]
[338153950,1726317121819,-500.0,0.00032876,2]
[338153951,1726317121829,-500.0,0.00032876,2]
[338153952,1726317121839,-500.0,0.00032876,2]
[338153953,1726317121848,-500.0,0.00032876,2]
[338153955,1726317121861,-500.0,0.00032876,2]
[338153956,1726317121870,-500.0,0.00032876,2]
[338153957,1726317121880,-512.12818373,0.00032876,2]
[338153958,1726317121889,-500.0,0.00032876,2]
[338153959,1726317121899,-500.0,0.00032876,2]
[338153960,1726317121908,-500.0,0.00032876,2]
[338153962,1726317121919,-500.0,0.00032876,2]
[338153963,1726317121928,-500.0,0.00032876,2]
[338153964,1726317121939,-500.0,0.00032876,2]
[338153965,1726317121948,-500.0,0.00032876,2]
[338153966,1726317121958,-500.0,0.00032876,2]
[338153967,1726317121968,-500.0,0.00032876,2]
[338153969,1726317121978,-500.0,0.00032876,2]
[338153970,1726317121988,-500.0,0.00032876,2]
[338153971,1726317121998,-500.0,0.00032876,2]
[338153972,1726317122007,-500.0,0.00032876,2]
[338153973,1726317122017,-500.0,0.00032876,2]
[338153975,1726317122027,-293.48306552,0.00032876,2]
[338153976,1726317122036,-564.63824547,0.00032876,2]
[338153977,1726317122045,-564.63824547,0.00032876,2]
[338153978,1726317122055,-564.63824547,0.00032876,2]
[338153979,1726317122065,-564.63824547,0.00032876,2]
[338153981,1726317122074,-564.63824547,0.00032876,2]
[338153982,1726317122084,-564.63824547,0.00032876,2]
[338153983,1726317122095,-564.63824547,0.00032876,2]
[338153984,1726317122106,-564.63824547,0.00032876,2]
[338153985,1726317122119,-564.63824547,0.00032876,2]
[338153986,1726317122128,-536.32220668,0.00032876,2]
[338153987,1726317122138,-1807.20128376,0.00032876,2]
[338153988,1726317122148,-1807.20128376,0.00032876,2]
[338153990,1726317122158,-1000.0,0.00032876,120]
[338153991,1726317122167,-162.449145,0.00032877,2]
[338153992,1726317122179,-319.0,0.00033,2]
[338153993,1726317122188,-263.0,0.00033,2]
[338153994,1726317122198,-263.0,0.00033,2]
[338153995,1726317122210,-5000.0,0.00033,7]
[338153997,1726317122220,-3500.0,0.00033042,5]
[338153998,1726317122230,-153.0,0.0003332,2]
[338153999,1726317122242,-153.0,0.0003333,2]
[338154000,1726317122254,-153.0,0.0003333,2]
[338154001,1726317122264,-153.0,0.0003333,2]
[338154002,1726317122274,-176.767174,0.0003333,14]
[338154003,1726317122283,-176.767173,0.0003333,14]
[338154005,1726317122294,-524.0,0.00033478,2]
[338154006,1726317122304,-150.0,0.00033478,2]
[338154007,1726317122315,-151.0,0.00033534,120]
[338154008,1726317122325,-170.49384,0.00033598,2]
[338154009,1726317122335,-1000.0,0.00033835,120]
[338154010,1726317122345,-400.050081,0.00033972,14]
[338154012,1726317122355,-400.050089,0.00033972,14]
[338154013,1726317122367,-151.0,0.00033972,14]
[338154014,1726317122378,-773.874501,0.00033972,14]
[338154015,1726317122389,-773.874507,0.00033972,14]
[338154016,1726317122401,-2011.38193,0.00033972,14]
[338154017,1726317122412,-2011.381921,0.00033972,14]
[338154018,1726317122423,-6927.23,0.00033972,11]
[338154019,1726317122433,-5000.0,0.00034,7]
[338154020,1726317122444,-1000.0,0.00034794,120]
[338154021,1726317122454,-1000.0,0.000348,3]
[338154022,1726317122465,-151.0,0.00034822,120]
[338154023,1726317122475,-219.77046911,0.00034849,120]
[338154024,1726317122484,-1440.29258598,0.00034978,5]
[338154025,1726317122494,-151.0,0.00034979,14]
[338154026,1726317122505,-1945.474756,0.00034979,14]
[338154027,1726317122516,-1945.474765,0.00034979,14]
[338154028,1726317122526,-2881.366516,0.00034979,14]
[338154029,1726317122536,-2881.366515,0.00034979,14]
[338154030,1726317122546,-322.684942,0.00034979,14]
[338154031,1726317122556,-322.684945,0.00034979,14]
[338154033,1726317122566,-143478.63503538,0.00034979,7]
[338154034,1726317122575,-86729.44233981,0.00034979,7]
[338154035,1726317122585,-2949.31379169,0.00034979,7]
[338154036,1726317122596,-12824.14072666,0.00034979,4]
[338154037,1726317122606,-6438.94723516,0.00034979,2]
[338154039,1726317122616,-4144.84310813,0.00034979,2]
[338154040,1726317122626,-4115.67525861,0.00034979,2]
[338154041,1726317122635,-10081.46465882,0.00034979,2]
[338154042,1726317122645,-9818.64966302,0.00034979,2]
[338154043,1726317122656,-91147.60937032,0.00034979,5]
[338154044,1726317122666,-18978.93061895,0.00034979,2]
[338154045,1726317122676,-10039.72752855,0.00034979,2]
[338154046,1726317122685,-150.0,0.00034979,14]
[338154047,1726317122696,-150.0,0.00034979,14]
[338154048,1726317122708,-1520.68401122,0.00034979,2]
[338154049,1726317122719,-89145.54365347,0.00034979,2]
[338154050,1726317122730,-85252.21687201,0.00034979,2]
[338154051,1726317122740,-4047.55583655,0.00034979,2]
[338154052,1726317122750,-175.24197864,0.00034979,2]
[338154053,1726317122760,-200000.0,0.00034979,20]
[338154054,1726317122772,-152.90340373,0.00034979,2]
[338154055,1726317122782,-206.70730408,0.00034979,7]
[338154056,1726317122793,-18061.75946394,0.00034979,2]
[338154057,1726317122802,-50000.0,0.00034979,7]
[338154058,1726317122812,-1959.32512929,0.00034979,2]
[338154059,1726317122822,-514.88809847,0.00034979,14]
[338154060,1726317122833,-500.0,0.00034979,2]
[338154061,1726317122845,-500.0,0.00034979,4]
[338154062,1726317122856,-2897.23906186,0.00034979,2]
[338154063,1726317122868,-200.0,0.00034979,14]
[338154064,1726317122879,-7898.16516047,0.00034979,30]
[338154065,1726317122889,-10000.0,0.00034979,60]
[338154066,1726317122900,-306.3023,0.00034979,120]
[338154067,1726317122909,-3602.19666813,0.00034979,120]
[338154068,1726317122920,-2435.5230163,0.00034979,30]
[338154069,1726317122930,-14525.24411909,0.00034979,120]
[338154071,1726317122940,-660.35418616,0.00034979,120]
[338154072,1726317122950,-353069.07032645,0.00034979,14]
[338154073,1726317122961,-234.08474175,0.00034979,14]
[338154074,1726317122971,-6271.0,0.00034979,120]
[338154075,1726317122981,-500000.0,0.00034979,20]
[338154076,1726317122991,-2426.53380988,0.00034979,20]
[338154077,1726317123003,-2000.0,0.00034979,120]
[338154078,1726317123013,-2000.0,0.00034979,120]
[338154079,1726317123023,-2000.0,0.00034979,120]
[338154080,1726317123034,-2000.0,0.00034979,120]
[338154081,1726317123044,-3488.12749486,0.00034979,30]
[338154082,1726317123054,-1179.42866328,0.00034979,120]
[338154083,1726317123064,-1941.11513943,0.00034979,30]
[338154084,1726317123074,-526.81612783,0.00034979,2]
[338154085,1726317123083,-1985.12329023,0.00034979,30]
[338154087,1726317123093,-150.39807606,0.00034979,120]
[338154088,1726317123103,-356.28116108,0.00034979,120]
[338154089,1726317123116,-567.31404331,0.00034979,120]
[338154090,1726317123125,-519.34974939,0.00034979,120]
[338154091,1726317123135,-996.07395081,0.00034979,30]
[338154092,1726317123144,-6166.38679673,0.00034979,120]
[338154093,1726317123155,-2583.7609883,0.00034979,60]
[338154094,1726317123165,-455.17479782,0.00034979,30]
[338154095,1726317123175,-151.02152387,0.00034979,30]
[338154096,1726317123184,-2521.34069623,0.00034979,30]
[338154097,1726317123195,-206.90329747,0.00034979,120]
[338154098,1726317123207,-1178.82187898,0.00034979,30]
[338154099,1726317123218,-1325.95067694,0.00034979,30]
[338154100,1726317123229,-283.93616697,0.00034979,120]
[338154101,1726317123240,-1113.3391232,0.00034979,120]
[338154103,1726317123251,-2244.345798,0.00034998,14]
[338154104,1726317123261,-2244.345798,0.00034998,14]
[338154105,1726317123271,-2244.345798,0.00034998,14]
[338154106,1726317123281,-2244.345807,0.00034998,14]
[338154107,1726317123292,-151.0,0.00034998,14]
[338154108,1726317123302,-286.102669,0.00034998,14]
[338154110,1726317123312,-155.692388,0.00034998,14]
[338154111,1726317123322,-155.692388,0.00034998,14]
[338154112,1726317123332,-155.692388,0.00034998,14]
[338154113,1726317123343,-155.692397,0.00034998,14]
[338154114,1726317123353,-376.707275,0.00034998,14]
[338154115,1726317123363,-376.707275,0.00034998,14]
[338154116,1726317123372,-376.707275,0.00034998,14]
[338154117,1726317123383,-376.707272,0.00034998,14]
[338154118,1726317123392,-164.38161,0.00034998,14]
[338154119,1726317123403,-151.0,0.00034998,14]
[338154120,1726317123413,-151.0,0.00034998,14]
[338154121,1726317123428,-291.162764,0.00034998,14]
[338154122,1726317123438,-151.0,0.00034998,14]
[338154123,1726317123447,-291.162767,0.00034998,14]
[338154124,1726317123459,-9847.64239,0.00034998,14]
[338154125,1726317123469,-9847.64239,0.00034998,14]
[338154126,1726317123479,-9847.64239,0.00034998,14]
[338154127,1726317123489,-9847.642382,0.00034998,14]
[338154128,1726317123500,-621.75166,0.00034998,14]
[338154129,1726317123510,-621.751651,0.00034998,14]
[338154130,1726317123521,-420.832819,0.00034998,14]
[338154131,1726317123533,-420.832818,0.00034998,14]
[338154132,1726317123543,-700.94599911,0.00035,2]
[338154133,1726317123554,-10137.3022857,0.00035,14]
[338154134,1726317123564,-560.46036957,0.00035,30]
[338154135,1726317123574,-200.0,0.00035,5]
[338154136,1726317123584,-5000.0,0.00035,7]
[338154137,1726317123594,-480.399034,0.00035069,14]
[338154138,1726317123604,-480.399034,0.00035069,14]
[338154140,1726317123615,-480.399034,0.00035069,14]
[338154141,1726317123627,-480.399034,0.00035069,14]
[338154142,1726317123637,-480.399032,0.00035069,14]
[338154143,1726317123648,-151.0,0.00035069,14]
[338154145,1726317123660,-836.60082616,0.0003519,2]
[338154146,1726317123673,-673.1,0.000352,14]
[338154147,1726317123694,-158.834459,0.00035455,2]
[338154148,1726317123705,-1205.0,0.000355,2]
[338154150,1726317123715,-178.208919,0.00035616,14]
[338154151,1726317123725,-178.208919,0.00035616,14]
[338154152,1726317123736,-151.0,0.00035616,14]
[338154153,1726317123747,-500.0,0.00035616,7]
[338154154,1726317123758,-500.0,0.00035616,7]
[338154155,1726317123769,-500.0,0.00035616,7]
[338154156,1726317123780,-500.0,0.00035616,7]
[338154157,1726317123792,-500.0,0.00035616,7]
[338154158,1726317123803,-500.0,0.00035616,7]
[338154159,1726317123816,-500.0,0.00035616,7]
[338154160,1726317123826,-500.0,0.00035616,7]
[338154161,1726317123837,-500.0,0.00035616,7]
[338154162,1726317123847,-500.0,0.00035616,7]
[338154163,1726317123859,-500.0,0.00035616,7]
[338154164,1726317123870,-500.0,0.00035616,7]
[338154165,1726317123881,-500.0,0.00035616,7]
[338154166,1726317123891,-500.0,0.00035616,7]
[338154167,1726317123902,-433.81788665,0.00035616,7]
[338154168,1726317123913,-500.0,0.00035616,7]
[338154169,1726317123924,-500.0,0.00035616,7]
[338154170,1726317123934,-404.36097988,0.00035616,7]
[338154171,1726317123944,-500.0,0.00035616,7]
[338154172,1726317123955,-187.983767,0.00035616,120]
[338154174,1726317123966,-37477.76,0.00035616,3]
[338154175,1726317123976,-65428.34,0.00035616,3]
[338154176,1726317123986,-1000.0,0.00035753,120]
[338154177,1726317123997,-227.53,0.000358,31]
[338154178,1726317124007,-227.53,0.000358,31]
[338154179,1726317124018,-227.53,0.000358,31]
[338154180,1726317124029,-227.53,0.000358,31]
[338154182,1726317124040,-227.53,0.000358,31]
[338154183,1726317124051,-227.53,0.000358,31]
[338154184,1726317124063,-227.53,0.000358,31]
[338154185,1726317124074,-227.53,0.000358,31]
[338154186,1726317124085,-227.53,0.000358,31]
[338154188,1726317124095,-227.53,0.000358,31]
[338154189,1726317124107,-227.53,0.000358,31]
[338154190,1726317124121,-227.53,0.000358,31]
[338154191,1726317124133,-227.53,0.000358,31]
[338154192,1726317124145,-227.53,0.000358,31]
[338154193,1726317124158,-227.53,0.000358,31]
[338154194,1726317124169,-227.53,0.000358,31]
[338154195,1726317124182,-227.53,0.000358,31]
[338154196,1726317124192,-227.53,0.000358,31]
[338154197,1726317124203,-227.53,0.000358,31]
[338154198,1726317124215,-227.53,0.000358,31]
[338154200,1726317124226,-227.53,0.000358,31]
[338154201,1726317124238,-227.53,0.000358,31]
[338154202,1726317124249,-227.53,0.000358,31]
[338154203,1726317124260,-227.53,0.000358,31]
[338154205,1726317124276,-615.0,0.000358,2]
[338154206,1726317124289,-6927.23,0.0003589,13]
[338154207,1726317124301,-324.16494528,0.00036,30]
[338154208,1726317124313,-89036.81566877,0.00036,60]
[338154209,1726317124324,-263.0,0.00036,2]
[338154211,1726317124337,-263.0,0.00036,2]
[338154212,1726317124350,-263.0,0.00036,2]
[338154213,1726317124363,-5000.0,0.00036,30]
[338154214,1726317124375,-789.46645775,0.00036164,5]
[338154216,1726317124386,-7375.14231413,0.00036279,2]
[338154217,1726317124397,-524.0,0.00036478,2]
[338154218,1726317124409,-150.0,0.00036478,2]
[338154219,1726317124422,-1000.0,0.00036712,120]
[338154220,1726317124433,-5000.0,0.00037,30]
[338154222,1726317124445,-151.0,0.00037068,120]
[338154223,1726317124456,-178.208919,0.00037072,14]
[338154224,1726317124467,-178.208919,0.00037072,14]
[338154225,1726317124479,-178.208919,0.00037072,14]
[338154226,1726317124489,-178.208919,0.00037072,14]
[338154227,1726317124500,-178.208919,0.00037072,14]
[338154228,1726317124512,-178.208919,0.00037072,14]
[338154230,1726317124523,-178.208919,0.00037072,14]
[338154231,1726317124535,-178.208919,0.00037072,14]
[338154232,1726317124546,-178.208919,0.00037072,14]
[338154233,1726317124556,-178.208925,0.00037072,14]
[338154234,1726317124567,-153.0,0.00037209,2]
[338154236,1726317124580,-153.0,0.00037209,2]
[338154237,1726317124592,-153.0,0.00037209,2]
[338154238,1726317124605,-151.0,0.00037233,120]
[338154239,1726317124617,-153.93826826,0.00037635,22]
[338154241,1726317124628,-1000.0,0.00037671,120]
[338154242,1726317124639,-306.0,0.00037674,2]
[338154243,1726317124650,-6927.23,0.00037808,15]
[338154244,1726317124661,-6311.7609626,0.0003786,120]
[338154246,1726317124674,-500.0,0.00038,2]
[338154247,1726317124687,-5000.0,0.00038,30]
[338154248,1726317124700,-153.0,0.00038031,2]
[338154249,1726317124711,-153.0,0.00038031,2]
[338154250,1726317124723,-153.0,0.00038031,2]
[338154252,1726317124735,-153.0,0.00038031,2]
[338154253,1726317124747,-153.0,0.00038031,2]
[338154254,1726317124758,-153.0,0.00038031,2]
[338154255,1726317124770,-153.0,0.00038031,2]
[338154256,1726317124783,-1000.0,0.00038356,70]
[338154258,1726317124795,-1000.0,0.00038356,74]
[338154259,1726317124806,-1000.0,0.00038356,78]
[338154260,1726317124819,-1000.0,0.00038356,82]
[338154261,1726317124830,-1000.0,0.00038356,86]
[338154263,1726317124842,-1000.0,0.00038356,90]
[338154264,1726317124860,-1000.0,0.00038356,94]
[338154265,1726317124872,-1000.0,0.00038356,98]
[338154266,1726317124885,-1000.0,0.00038356,102]
[338154268,1726317124898,-1000.0,0.00038356,106]
[338154269,1726317124910,-1000.0,0.00038356,110]
[338154270,1726317124921,-1000.0,0.00038356,114]
[338154271,1726317124932,-1000.0,0.00038356,118]
[338154276,1726317124944,-524.0807563,0.00038356,120]
[338154277,1726317125212,-1000.0,0.0003863,120]
[338154278,1726317125223,-227.53,0.000388,31]